[Event "45th FIDE Olympiad 2024"]
[Site "Budapest"]
[Date "2024.09.11"]
[Round "1.133"]
[White "Schitco, Ivan"]
[Black "Gabriel, Davidson"]
[Result "1/2-1/2"]
[ECO "E91"]
[WhiteElo "2527"]
[BlackElo "2043"]
[Annotator "TA"]
[PlyCount "129"]
[EventDate "2024.09.05"]
[EventType "team-tourn"]
[EventCountry "HUN"]
[SourceTitle "playchess.com"]
[Source "ChessBase"]
[SourceQuality "1"]
[WhiteTeam "Moldova"]
[BlackTeam "Haiti"]
[WhiteTeamCountry "MDA"]
[BlackTeamCountry "HAI"]
[TimeControl "40/5400+30:1800+30"]

{[%evp 16,129,40,48,78,75,78,71,75,68,94,88,81,71,117,89,89,88,77,81,104,105,154,157,146,150,163,152,198,182,195,192,186,185,196,189,167,94,118,69,70,15,14,17,15,0,0,0,16,18,39,8,8,8,16,10,19,19,19,19,19,8,8,8,51,51,60,59,60,60,60,60,71,38,53,30,30,30,30,30,30,30,30,30,30,30,30,30,30,30,30,30,30,0,30,0,30,30,30,30,30,30,30,8,8,8,8,8,8,0,8,8,8,8,8,8]} 1. Nf3 Nf6 2. c4 g6 3. Nc3 Bg7 4. e4 d6 5. d4 O-O 6. Be2 Bg4 7. O-O Nfd7 8. Be3 e5 9. d5 Bxf3 10. Bxf3 f5 11. b4 a5 {[#] White is better.} 12. a3 f4 13. Bd2 Nf6 14. c5 Qe8 ({Black should try} 14... axb4 15. axb4 Rxa1 16. Qxa1 g5) 15. cxd6 cxd6 16. bxa5 Rxa5 17. a4 $36 {[%mdl 2048] Keeping Black busy.} Qd8 18. Nb5 Ra6 (18... Ra8 $142) 19. Rc1 $16 Ne8 20. Bg4 Nd7 {Black is weak on the light squares} 21. Bb4 {Dodges Nc5} h5 (21... Kh8 $16 22. a5 Bf6) 22. Be6+ {This pair of bishops is nice.} Kh7 23. Rc3 f3 24. Rxf3 Rxf3 25. Qxf3 ({Much less strong is} 25. gxf3 $6 Nc5 $16) 25... Rxa4 26. Qb3 (26. Bxd6 $18 {Strongly threatening Qf7.} Nxd6 27. Nxd6) 26... Ra6 27. Bf7 {White has more active pieces.} (27. Qc4 $16) 27... Nef6 $1 $14 28. Bxd6 (28. Nxd6 $14 Qe7 29. Bxg6+ (29. Nxb7 Qxf7 30. Nd8 Qe8 $15) 29... Kxg6 30. Nxb7 (30. Nf5 Qf7 $11)) 28... Nxe4 $11 {[#]} 29. Qc2 $1 Qf6 $1 30. Be6 {[%cal Bf7e6,Be6d7,Bd7b5][%mdl 32]} (30. Qxe4 {simplifies} Qxf7 31. Rd1 Nf6 32. Qc4) 30... Nxd6 31. Bxd7 Nxb5 32. Bxb5 Ra5 33. Qe2 e4 34. g3 Qd4 35. Rd1 Ra1 36. Rxa1 Qxa1+ {[%mdl 4096] Endgame. KQB-KQB} 37. Kg2 Qd4 38. Qc4 Qxc4 39. Bxc4 {KB-KB} Bd4 40. d6 {[%cal Bd5d6,Bd6d7][%mdl 32]} Be5 41. d7 Bc7 42. Bd5 b5 43. Bxe4 Kg7 44. h4 Kf6 45. f4 Bd8 46. Kf3 b4 47. Bc2 Bb6 48. Ke2 Bc7 49. Ke3 Bb6+ 50. Kf3 Bc7 51. Ke4 {Hoping for Kd5.} Ke6 52. Ba4 Bb6 53. Kf3 Bc7 54. Bc2 Kf6 55. Ke4 Ke6 56. Bb3+ Ke7 57. Ba4 Bb6 58. Kf3 Kf6 59. g4 hxg4+ {The position is equal.} 60. Kxg4 Bc7 61. Kf3 Bd8 62. Kg4 Bc7 63. Bc2 Bd8 64. f5 gxf5+ 65. Bxf5 {Black defended with fortune.   Weighted Error Value: White=0.09 (flawless) /Black=0.06 (flawless) .  Mistake:       	White=3     	Black=3      Inaccurate:     	White=2     	Black=2      OK:         	White=23    	Black=27     Best:        	---       	Black=3      Strong:       	---       	Black=2} 1/2-1/2

[Event "45th FIDE Olympiad 2024"]
[Site "Budapest"]
[Date "2024.09.11"]
[Round "1.134"]
[White "Etienne, Angelo"]
[Black "Macovei, Andrei"]
[Result "0-1"]
[ECO "A37"]
[WhiteElo "2122"]
[BlackElo "2464"]
[Annotator "TA"]
[PlyCount "110"]
[EventDate "2024.09.05"]
[EventType "team-tourn"]
[EventCountry "HUN"]
[SourceTitle "playchess.com"]
[Source "ChessBase"]
[SourceQuality "1"]
[WhiteTeam "Haiti"]
[BlackTeam "Moldova"]
[WhiteTeamCountry "HAI"]
[BlackTeamCountry "MDA"]
[TimeControl "40/5400+30:1800+30"]

{[%evp 19,110,-10,-6,-38,-35,-38,-22,-33,-18,-78,-78,-76,-64,-90,-105,-100,-106,-123,-105,-189,-132,-148,-162,-182,-145,-198,-137,-137,-133,-185,-214,-175,-141,-442,-429,-500,-517,-502,-416,-395,-369,-345,-277,-242,-241,-378,-395,-398,-396,-572,-431,-494,-477,-489,-477,-469,-478,-479,-489,-661,-662,-827,-870,-866,-860,-814,-776,-915,-913,-1588,-669,-718,-675,-672,-666,-689,-676,-759,-766,-29975,-29974,-29971,-29974,-29984,-29985,-29985,-29980,-29976,-29977,-29976,-29978,-29973,-29974]} 1. Nf3 c5 2. g3 Nc6 3. c4 g6 4. Bg2 Bg7 5. Nc3 e5 6. O-O d6 7. d3 Nge7 8. Ne1 Be6 9. Nc2 d5 10. cxd5 Nxd5 11. Ne4 b6 12. Ng5 Bc8 13. Ne3 {The position is equal.} Nde7 14. Qa4 {[#]} (14. a3 $11) 14... Bd7 $1 $17 15. Bd2 O-O 16. Qh4 {[%csl Gg5][%cal Rh4h7]} h6 17. Nf3 g5 18. Qc4 Rc8 19. h4 (19. Rfe1 $17) 19... Be6 (19... Nd4 $19 20. Rfe1 e4 21. dxe4 Bb5) 20. Qa4 {[#]} g4 {[%mdl 512]} 21. Nh2 (21. Nxg4 b5) 21... h5 22. f3 (22. Nc2 $17 {might work better.}) 22... Nd4 (22... f5 $19 23. fxg4 b5 (23... fxg4 24. Rxf8+ Bxf8 25. Bxc6 $15) (23... hxg4 24. Rf2 $17)) 23. Rf2 f5 $36 {[%mdl 2048] And now ...f4 would win. Black is on the roll. Black is more active.} 24. fxg4 (24. Nef1 $17 {was necessary.}) 24... hxg4 $19 {Threatens to win with ...f4.} 25. Nef1 f4 {...Nef5 would now be deadly.} 26. Qd1 $2 {[%mdl 8192] This costs White the game.} (26. e3 $17 {is tougher.} f3 27. exd4 fxg2 28. Rxg2) 26... Nef5 27. Nxg4 fxg3 28. Rxf5 Nxf5 29. Bg5 Qd4+ 30. e3 Qxb2 {[%cal Of8f7]} 31. Rb1 Qa3 {[%cal Of8f7]} 32. e4 (32. h5 {was the only defense.}) 32... Nd4 33. Nxg3 Qxa2 {...Bxg4 is the strong threat.} 34. Rc1 (34. Nf5 $142) 34... Qb3 {Strongly threatening ...Qxd1+.} 35. Nh6+ Bxh6 36. Bxh6 {Hoping for Qh5.} Qxd1+ 37. Rxd1 Rf7 38. Nf5 Kh7 ({But not} 38... Nxf5 39. exf5 Rxf5 40. Be4 $19) 39. Nxd4 cxd4 40. Bd2 Rc2 41. Bg5 Bg4 42. Ra1 Kg6 43. Rb1 Be2 44. Rb5 Rc5 (44... Bxd3 $142 45. Rb3 Rff2 46. Rxd3 Rxg2+ 47. Kf1 Rcf2+ 48. Ke1 Rh2) 45. Rb3 Ra5 {aiming for ...Ra2.} 46. Kh2 Bg4 47. Kg3 Be6 48. Rb2 Ra3 49. Rb5 Rxd3+ {Black mates.} 50. Kh2 Rf2 51. Kg1 Ra2 52. Rxe5 Bh3 53. Bxh3 Rg3+ 54. Kf1 Rxh3 {[%cal Rh3h1]} 55. Kg1 Rg3+ {Weighted Error Value: White=0.61/Black=0.20 (precise) .  Loses game:     	White=1     	---        Mistake:       	White=6     	Black=2      Inaccurate:     	White=2     	---        OK:         	White=9     	Black=12     Best:        	White=3     	Black=3      Strong:       	---       	Black=1} 0-1

[Event "45th FIDE Olympiad 2024"]
[Site "Budapest"]
[Date "2024.09.11"]
[Round "1.135"]
[White "Lashkin, Jegor"]
[Black "Victor, Wyclef"]
[Result "1-0"]
[ECO "E18"]
[WhiteElo "2472"]
[BlackElo "1924"]
[Annotator "TA"]
[PlyCount "61"]
[EventDate "2024.09.05"]
[EventType "team-tourn"]
[EventCountry "HUN"]
[SourceTitle "playchess.com"]
[Source "ChessBase"]
[SourceQuality "1"]
[WhiteTeam "Moldova"]
[BlackTeam "Haiti"]
[WhiteTeamCountry "MDA"]
[BlackTeamCountry "HAI"]
[TimeControl "40/5400+30:1800+30"]

{[%evp 16,61,56,67,66,60,70,59,91,91,95,84,93,93,88,96,144,154,152,124,141,144,229,238,232,237,262,258,257,254,308,331,356,349,338,316,379,340,379,384,466,465,451,473,767,740,1152,1141]} 1. d4 Nf6 2. c4 e6 3. Nf3 b6 4. g3 Bb7 5. Bg2 Be7 6. O-O O-O 7. Nc3 d6 8. d5 e5 9. e4 Nbd7 10. Be3 Ng4 11. Bd2 $1 Bc8 {White leaves nothing to chance now. White is slightly better.} 12. b4 Ngf6 13. Ne1 {White is more active.} Re8 14. Nd3 Ba6 15. Qb3 Nf8 (15... Bb7 $142) 16. a4 $16 Bc8 {[#]} 17. c5 $1 {[%mdl 512]} bxc5 18. bxc5 {[%cal Bb4c5,Bc5c6][%mdl 32]} Ba6 (18... c6 $16 {was worth a try.} 19. dxc6 Ne6) 19. Nb5 $18 N8d7 20. c6 Nb6 21. Rfb1 Bf8 22. Qc2 g6 23. Nc3 Bxd3 24. Qxd3 a5 25. Rb5 Bg7 26. Ne2 Ra7 27. Be3 ({But not} 27. Bxa5 Nfxd5 28. exd5 e4) 27... Qb8 28. Rab1 {White is clearly winning.} Ra6 29. R5b3 Qa7 (29... Qc8 $142 30. Nc3 h5 31. Bxb6 Rxb6 32. Rxb6 cxb6 33. Rxb6 Qg4) 30. Nc3 Rc8 31. Bf1 {Weighted Error Value: White=0.05 (flawless) /Black=0.27 (precise) .  Mistake:       	---       	Black=3      Inaccurate:     	---       	Black=2      OK:         	White=11    	Black=5      Best:        	White=1     	---        Strong:       	White=1     	---} 1-0

[Event "45th FIDE Olympiad 2024"]
[Site "Budapest"]
[Date "2024.09.11"]
[Round "1.136"]
[White "Volcimus, Ritchy David"]
[Black "Bologan, Victor"]
[Result "0-1"]
[ECO "C45"]
[WhiteElo "1948"]
[BlackElo "2598"]
[Annotator "TA"]
[PlyCount "74"]
[EventDate "2024.09.05"]
[EventType "team-tourn"]
[EventCountry "HUN"]
[SourceTitle "playchess.com"]
[Source "ChessBase"]
[SourceQuality "1"]
[WhiteTeam "Haiti"]
[BlackTeam "Moldova"]
[WhiteTeamCountry "HAI"]
[BlackTeamCountry "MDA"]
[TimeControl "40/5400+30:1800+30"]

{[%evp 9,74,9,23,-21,-14,-39,-23,-30,-19,-18,-18,-48,-9,-18,-18,-25,-22,-25,-28,-34,-41,-56,-53,-78,-35,-40,-33,-45,-52,-51,-40,-46,-45,-44,-38,-43,-31,-71,-28,-70,-50,-47,-35,-50,-41,-46,-30,-64,-70,-114,-95,-149,-162,-109,-109,-159,-151,-372,-266,-470,-468,-480,-479,-481,-479,-495,-483]} 1. e4 e5 2. Nf3 Nc6 3. d4 exd4 4. Nxd4 Qf6 5. Nf3 Bc5 6. Nbd2 Nge7 7. Nb3 Bb6 8. a4 {[#] Strongly threatening a5. Black has an edge.} a6 9. a5 Ba7 10. Bd3 Ne5 11. O-O Nxf3+ 12. Qxf3 Qxf3 13. gxf3 d6 14. Re1 Be6 15. Ra3 Nc6 16. Bd2 O-O (16... g5 $5) 17. Bc3 Rad8 18. f4 f5 19. e5 dxe5 20. Bxe5 Rd7 21. Bc3 Bd5 {Threatens to win with ...Rd6.} 22. Nd2 Nd4 23. Ra4 Ne6 {Black is more active.} 24. Be5 Nc5 25. Ra3 Bf7 26. Nf1 g6 27. Ne3 Rfd8 28. Rd1 c6 29. b4 Ne6 30. Kg2 {[#]} (30. Nc4 $142) 30... Bb8 $1 $17 31. Bxb8 Rxb8 32. Kg3 (32. Bc4 $142 Rxd1 (32... Nxf4+ $2 33. Kf3 $19) 33. Nxd1 Nxf4+ 34. Kf3) 32... Rbd8 33. c4 $2 {Loses the game.} (33. Rc3 $17 {was necessary.}) 33... Rd4 34. Ng2 $2 (34. Bc2) 34... c5 $19 {Black is clearly winning.} 35. b5 axb5 36. cxb5 c4 37. a6 bxa6 {Weighted Error Value: White=0.31/Black=0.12 (very precise) .  Loses game:     	White=1     	---        Mistake:       	White=3     	---        Inaccurate:     	White=5     	Black=3      OK:         	White=5     	Black=14     Best:        	---       	Black=1      Strong:       	---       	Black=1} (37... Rxd3+ 38. Rdxd3 cxd3 39. axb7) 0-1

[Event "45th FIDE Olympiad 2024"]
[Site "Budapest"]
[Date "2024.09.11"]
[Round "1.137"]
[White "Liyanage, Ranindu Dilshan"]
[Black "Albornoz Cabrera, Carlos Daniel"]
[Result "1/2-1/2"]
[ECO "B90"]
[WhiteElo "2366"]
[BlackElo "2579"]
[Annotator "TA"]
[PlyCount "86"]
[EventDate "2024.09.05"]
[EventType "team-tourn"]
[EventCountry "HUN"]
[SourceTitle "playchess.com"]
[Source "ChessBase"]
[SourceQuality "1"]
[WhiteTeam "Sri Lanka"]
[BlackTeam "Cuba"]
[WhiteTeamCountry "SRI"]
[BlackTeamCountry "CUB"]
[TimeControl "40/5400+30:1800+30"]

{[%evp 16,86,27,6,7,0,0,0,0,0,0,0,3,0,0,0,0,-18,-15,-16,-3,-8,-6,-10,0,-5,0,0,0,0,0,0,13,0,0,0,0,0,0,0,5,0,0,0,0,-3,-6,-5,16,13,27,43,41,40,36,28,26,36,54,60,52,54,48,62,65,62,61,61,61,60,36,0,34]} 1. e4 c5 2. Nf3 d6 3. d4 cxd4 4. Nxd4 Nf6 5. Nc3 a6 6. Be3 Ng4 7. Bc1 Nc6 8. h3 Nf6 9. Be3 e5 10. Nb3 Be6 11. Qf3 Nb4 12. O-O-O Rc8 {[%cal Ob4a2]} 13. Kb1 h6 14. a3 Rxc3 $1 15. bxc3 Nc6 16. Bc1 Be7 17. g4 Na5 18. Nxa5 Qxa5 19. c4 Nd7 {[%cal Bf6d7,Bd7b6,Bb6a4,Ba4b2][%mdl 32]} 20. Bb2 Nb6 21. Qc3 Qc5 {[%csl LRc4,LRf2][%cal Of7f6]} 22. f4 {[%cal Rf4e5]} Na4 23. Qb4 Nxb2 24. Qxc5 dxc5 25. Kxb2 exf4 26. e5 f3 27. Bd3 Bh4 $132 {[%mdl 2048] Black has counterplay} 28. Be4 f2 ({Don't play} 28... Bxc4 29. Bxf3 (29. Bxb7 $2 {perishes.} f2 $19) 29... Bg3 30. c3 $16 (30. Bxb7 Ke7 $11)) 29. Kc3 Bg3 30. Bxb7 h5 31. Bd5 Bxe5+ (31... hxg4 32. Bxe6 fxe6 33. hxg4) 32. Kd3 hxg4 {[#] White must now prevent ...g3.} 33. Bxe6 fxe6 34. hxg4 $11 {[%mdl 4096] Endgame. KRR-KRB} Rf8 35. Rdf1 Rf4 36. c3 Rxg4 37. Rxf2 Rg3+ 38. Ke4 Bxc3 39. Rh8+ Ke7 40. Ra8 $1 {[%mdl 1024] White has compensation.} a5 41. Ra7+ Kd6 42. Ra6+ Ke7 43. Ra7+ Kd6 {Weighted Error Value: White=0.04 (flawless) /Black=0.04 (flawless) .  OK:         	White=17    	Black=12     Best:        	White=2     	Black=7      Strong:       	White=1     	Black=1} 1/2-1/2

[Event "45th FIDE Olympiad 2024"]
[Site "Budapest"]
[Date "2024.09.11"]
[Round "1.138"]
[White "Quesada Perez, Luis Ernesto"]
[Black "Amarathunga, Kosala Sandeepa Cham"]
[Result "1-0"]
[ECO "D37"]
[WhiteElo "2578"]
[BlackElo "1956"]
[Annotator "TA"]
[PlyCount "53"]
[EventDate "2024.09.05"]
[EventType "team-tourn"]
[EventCountry "HUN"]
[SourceTitle "playchess.com"]
[Source "ChessBase"]
[SourceQuality "1"]
[WhiteTeam "Cuba"]
[BlackTeam "Sri Lanka"]
[WhiteTeamCountry "CUB"]
[BlackTeamCountry "SRI"]
[TimeControl "40/5400+30:1800+30"]

{[%evp 9,53,22,37,44,53,46,59,39,55,49,57,54,56,70,65,76,113,124,111,122,413,401,410,239,245,233,241,234,647,602,1075,1060,1877,1827,5581,5581,2861,2684,1573,1559,1559,1249,6383,6303,29996,29997]} 1. d4 Nf6 2. c4 e6 3. Nf3 d5 4. Nc3 h6 5. Bf4 c6 6. e3 Nbd7 7. h3 b6 8. cxd5 {White is slightly better.} exd5 9. Bd3 Be7 10. O-O O-O 11. Rc1 Bb7 12. Ne5 c5 13. Bf5 {White has more active pieces.} Nxe5 14. dxe5 Ne4 {[%mdl 8192] This costs Black the game.} (14... Ne8 $16 {is a better defense.}) 15. Nxe4 $18 dxe4 16. Qg4 (16. Qh5 $142 {[%cal Of4h6] Bxh6! is the strong threat.} Qe8 17. Bxh6) 16... Kh8 17. Rfd1 Qe8 18. Qh5 $40 {[%mdl 128] Strongly threatening Bd7. White is out for blood.} Qc6 (18... Bc8 19. Bxe4 Be6 20. Bxa8 Qxa8) 19. Rd7 Rae8 20. Rcd1 {[%cal Od1d6] Black must now prevent R1d6!} Kg8 {[#]} 21. Rxb7 $1 {[%mdl 512] Threatens to win with Rdd7.} g6 (21... Bg5 22. Rdd7) 22. Qxh6 {[%cal Od1d6] Rd6! would kill now.} Qxb7 {[#]} 23. Bxg6 $1 {[%mdl 512]} fxg6 24. Qxg6+ Kh8 25. e6 Rxf4 26. exf4 Qc8 27. Rd5 {Weighted Error Value: White=0.14 (very precise) /Black=1.08.  Loses game:     	---       	Black=1      Mistake:       	White=1     	Black=1      Inaccurate:     	---       	Black=2      OK:         	White=5     	Black=3      Best:        	White=2     	Black=1} 1-0

[Event "45th FIDE Olympiad 2024"]
[Site "Budapest"]
[Date "2024.09.11"]
[Round "1.139"]
[White "Kodithuwakku, K K Dinujaya"]
[Black "Berdayes Ason, Dylan Isidro"]
[Result "0-1"]
[ECO "E11"]
[WhiteElo "1827"]
[BlackElo "2474"]
[Annotator "TA"]
[PlyCount "74"]
[EventDate "2024.09.05"]
[EventType "team-tourn"]
[EventCountry "HUN"]
[SourceTitle "playchess.com"]
[Source "ChessBase"]
[SourceQuality "1"]
[WhiteTeam "Sri Lanka"]
[BlackTeam "Cuba"]
[WhiteTeamCountry "SRI"]
[BlackTeamCountry "CUB"]
[TimeControl "40/5400+30:1800+30"]

{[%evp 13,74,0,13,-7,0,0,0,0,-4,0,0,-12,-2,5,-3,-47,-31,-32,-29,-43,-18,-87,-83,-164,-128,-127,-112,-230,-238,-247,-245,-236,-229,-266,-277,-260,-269,-327,-325,-341,-339,-366,-355,-393,-371,-464,-460,-455,-456,-497,-483,-561,-493,-568,-486,-893,-847,-1381,-1324,-1642,-1635,-1535,-1522]} 1. d4 Nf6 2. c4 e6 3. Nf3 d5 4. g3 Bb4+ 5. Bd2 Be7 6. Bg2 O-O 7. O-O Nbd7 {[%cal Bb8d7,Bd7f8,Bf8e6][%mdl 32]} 8. Bc3 b6 9. cxd5 exd5 10. Bd2 {The position is equal.} Re8 11. Nc3 Bb7 12. Bf4 Nf8 13. Rc1 Ne6 14. Ne5 c6 15. Bh3 Bf8 16. e3 c5 17. Ne2 (17. Bf5 $11) 17... Ne4 $17 18. Nf3 (18. Bxe6 $17 Rxe6 19. h4) 18... c4 19. Nc3 f6 {Black is more active.} 20. Nd2 {[#]} (20. Bxe6+ $17 {was called for.} Rxe6 21. g4) 20... Nxd2 $1 $19 21. Qxd2 g5 22. Qd1 Ng7 ({Weaker is} 22... gxf4 23. Bxe6+ Rxe6 24. Qg4+ Kf7 25. Qh5+ Kg7 26. Qg4+ Kf7 27. Qh5+ Kg8 28. Qg4+ Kf7 $11) 23. Kh1 gxf4 24. gxf4 Bb4 25. Rg1 Bxc3 26. bxc3 Bc8 {Inhibits Bf5.} 27. Bg2 Kh8 28. Qf3 Be6 29. e4 dxe4 {Black is clearly winning.} 30. Qxe4 Rc8 31. Qf3 Qd7 32. d5 Bf5 33. Qg3 Be4 34. f3 (34. Bxe4 $142 Rxe4 35. Rcd1) 34... Nf5 35. Qg4 Rg8 36. Qh5 {[#]} Qxd5 $1 37. Qh3 {Wards off Ng3+} Bd3 {Weighted Error Value: White=0.88/Black=0.09 (flawless) .  Mistake:       	White=4     	---        Inaccurate:     	White=2     	---        OK:         	White=2     	Black=13     Best:        	White=1     	Black=1      Strong:       	---       	Black=1} 0-1

[Event "45th FIDE Olympiad 2024"]
[Site "Budapest"]
[Date "2024.09.11"]
[Round "1.140"]
[White "Almeida Quintana, Omar"]
[Black "Bandara, Dhanushka"]
[Result "1-0"]
[ECO "D38"]
[WhiteElo "2492"]
[BlackElo "1903"]
[Annotator "TA"]
[PlyCount "53"]
[EventDate "2024.09.05"]
[EventType "team-tourn"]
[EventCountry "HUN"]
[SourceTitle "playchess.com"]
[Source "ChessBase"]
[SourceQuality "1"]
[WhiteTeam "Cuba"]
[BlackTeam "Sri Lanka"]
[WhiteTeamCountry "CUB"]
[BlackTeamCountry "SRI"]
[TimeControl "40/5400+30:1800+30"]

{[%evp 12,53,20,4,18,19,24,18,27,28,23,20,53,34,57,23,58,75,77,77,81,0,55,14,25,35,31,0,0,0,47,44,63,66,67,68,95,61,73,72,67,70,87,71]} 1. d4 Nf6 2. Nf3 d5 3. c4 e6 4. Nc3 Bb4 5. Qa4+ Nc6 6. e3 O-O 7. Bd2 Bd7 {[%cal Oc6d4] [#] White must now prevent ...Nxd4!} 8. Qb3 {[%cal Rc4d5]} Qe7 9. cxd5 exd5 {The position is equal.} 10. a3 Bxc3 11. Bxc3 {[%cal Of1d3]} Rab8 12. Bd3 Rfd8 13. h3 Be6 14. Qc2 h6 15. b4 {[#] b5 would now be deadly.} a6 16. Bb2 (16. O-O $16) 16... Na7 ({Black should play} 16... Ne4 $1 $11) 17. Nd2 {[%cal Bf3d2,Bd2b3,Bb3c5][%mdl 32]} Nc8 18. O-O Nd6 19. Rac1 c6 20. Nb3 Nde4 (20... g6 $11) 21. Rfe1 $14 Ng5 22. Nc5 Bc8 23. f3 Qd6 ({Much weaker is} 23... Bxh3 $6 24. f4 (24. gxh3 Nxf3+ 25. Kh1 Nxe1 $11) 24... Nh5 25. Qd1 $18 (25. gxh3 Nxh3+ 26. Kf1 Qh4 $11) (25. fxg5 Qxg5 26. Rf1 Bc8 $18)) 24. Qf2 {Repels Qg3} b6 $1 25. h4 ({Much worse is} 25. Nxa6 Bxa6 26. Bxa6 b5 $17) 25... Ne6 26. Nb3 {White is more active.} (26. Nxa6 $2 {is the wrong capture.} Bxa6 27. Bxa6 b5 $19) 26... Nh5 27. g4 {Weighted Error Value: White=0.12 (very precise) /Black=0.15 (very precise) .  Mistake:       	White=1     	Black=2      Inaccurate:     	White=4     	Black=3      OK:         	White=8     	Black=5      Strong:       	---       	Black=1} 1-0

[Event "45th FIDE Olympiad 2024"]
[Site "Budapest"]
[Date "2024.09.11"]
[Round "1.141"]
[White "Kadric, Denis"]
[Black "Blackman, Justin"]
[Result "1-0"]
[ECO "B23"]
[WhiteElo "2553"]
[BlackElo "2265"]
[Annotator "TA"]
[PlyCount "117"]
[EventDate "2024.09.05"]
[EventType "team-tourn"]
[EventCountry "HUN"]
[SourceTitle "playchess.com"]
[Source "ChessBase"]
[SourceQuality "1"]
[WhiteTeam "Montenegro"]
[BlackTeam "Barbados"]
[WhiteTeamCountry "MNE"]
[BlackTeamCountry "BAR"]
[TimeControl "40/5400+30:1800+30"]

{[%evp 9,117,-4,-2,0,5,0,0,-9,27,0,6,9,42,37,32,-23,51,76,68,60,120,114,139,131,112,138,146,118,101,109,211,212,307,321,328,342,375,347,405,418,391,413,407,400,392,359,395,330,454,454,510,509,493,512,512,497,654,646,633,628,572,560,673,658,667,589,794,788,739,725,820,812,779,757,1228,1228,1017,1211,1018,979,2112,3741,12792,12529,11706,11031,9783,9719,7376,6432,2384,4287,6957,3734,6193,6285,29976,29977,29977,29978,29982,29983,29983,29984,29984,29985,29985,29986,29986,29987]} 1. e4 c5 2. Nc3 d6 3. f4 g6 4. Nf3 Bg7 5. Bb5+ Bd7 6. Bc4 Nc6 7. O-O e6 8. f5 {The position is equal.} gxf5 9. exf5 d5 10. Bb5 Nf6 {[%cal Bg8f6,Bf6d7,Bd7c5][%mdl 32]} 11. d3 O-O 12. Qe1 (12. Bxc6 $14 Bxc6 13. Ne2) 12... Nd4 (12... exf5 $11 13. Bg5 Ne7) 13. Bxd7 $14 Nxd7 14. Nxd4 cxd4 (14... Bxd4+ $14 15. Kh1 Kh8) 15. fxe6 $16 fxe6 16. Qxe6+ Kh8 17. Nxd5 Rxf1+ 18. Kxf1 Nc5 {[#]} 19. Qf5 {Black must now prevent Bf4.} Qh4 (19... Qd6 $16 20. Qh5 (20. Bf4 Rf8 $16) 20... Rf8+ 21. Bf4 (21. Kg1 $2 Qe6 $19) 21... Rxf4+ 22. Nxf4 Qxf4+ 23. Kg1 Qe3+ 24. Kh1 Qe7) 20. Nf4 $18 Re8 (20... Na4 $142 21. Ne6 Qf6 22. Nxg7 Rf8 23. Qxf6 Rxf6+ 24. Ke2 Kxg7) 21. Bd2 (21. Qxc5 $2 Qe1#) 21... Qxh2 {...Qh1+ is the strong threat.} 22. Re1 (22. Qxc5 Qh1+ 23. Kf2 Qxa1 $11) 22... Rxe1+ 23. Kxe1 {White threatens Qc8+ and mate.} Qh4+ 24. Kd1 {Intending Qc8+ and mate.} Qe7 25. Bb4 b6 {[%cal Bb7b6,Bb6c5][%mdl 32]} 26. Qc8+ Qf8 27. Qxf8+ Bxf8 {[%mdl 4096] Endgame. KBN-KBN} 28. Ke2 Kg8 29. Bxc5 bxc5 {KB-KN} 30. Kf3 Kf7 31. Ke4 Bd6 32. Kf5 Ke7 33. Nd5+ Kf7 34. Nf6 h6 {[%cal Bh7h6,Bh6h5][%mdl 32]} 35. Ng4 h5 36. Nh6+ (36. Ne5+ Ke7 37. Nc6+ Ke8) 36... Kg7 37. Kg5 {Hoping for Nf5+.} Bb8 38. Nf5+ (38. Kxh5 Bf4 $18) 38... Kf7 39. Kxh5 Kf6 40. Kg4 Bc7 41. Ng3 Ke5 42. b3 Bd8 43. Ne4 Be7 44. g3 {[%cal Bg2g3,Bg3g4][%mdl 32]} a6 {[%cal Ba7a6,Ba6a5][%mdl 32]} 45. a4 a5 46. Nd2 Bd8 47. Nc4+ Ke6 48. Kf3 Kf5 49. g4+ Kg5 50. Nd6 Kf6 {Inhibits Nf7.} 51. Ke4 Ke6 52. Nb7 {[%csl LRc5,LRd8]} Be7 53. Nxa5 {White mates.} Bh4 54. Nc4 Be7 55. a5 Kd7 56. a6 Kc7 57. a7 Kb7 {[#]} 58. Nb6 $1 {[%mdl 512]} Kxa7 59. Nc8+ {Weighted Error Value: White=0.05 (flawless) /Black=0.27 (precise) .  Mistake:       	White=1     	Black=4      Inaccurate:     	White=1     	Black=3      OK:         	White=16    	Black=10     Best:        	White=5     	Black=5} 1-0